bitfinex/quotes_ETHUSD_20240703
["timestamp","ask_amount","ask_price","bid_price","bid_amount"]
[1720022276327,0.07558183,3308.2,3307.9,1.121]
[1720022276535,0.075583,3308.3,3307.9,1.121]
[1720022276760,1.9455,3308.4,3307.9,1.121]
[1720022277064,0.07558298,3308.3,3307.9,1.121]
[1720022282459,0.07558298,3308.3,3307.0,2.325]
[1720022282765,0.07558298,3308.3,3307.8,1.121]
[1720022282939,1.9455,3308.2,3306.6,2.3216]
[1720022283146,0.07558892,3308.1,3306.6,2.3216]
[1720022283339,1.19658892,3308.1,3307.2,1.121]
[1720022283555,1.9455,3307.9,3307.2,1.121]
[1720022283739,0.07559275,3307.8,3307.2,1.121]
[1720022283938,0.07559272,3307.7,3307.2,1.121]
[1720022284139,1.9455,3307.6,3306.2,2.4551]
[1720022284469,0.07559543,3307.5,3307.1,1.121]
[1720022285133,0.07559543,3307.5,3307.3,1.121]
[1720022291237,0.07559543,3307.5,3306.3,3.866874]
[1720022291432,0.07559543,3307.5,3307.3,1.121]
[1720022291971,0.07559543,3307.5,3306.3,0.866874]
[1720022292267,0.07559543,3307.5,3307.3,1.121]
[1720022295089,0.07559543,3307.5,3306.4,0.36225209]
[1720022295469,0.07559543,3307.5,3306.9,1.121]
[1720022298092,0.07559543,3307.5,3307.1,1.121]
[1720022301284,0.07559543,3307.5,3306.0,0.29960288]
[1720022301285,0.07559543,3307.5,3307.3,1.121]
[1720022303580,0.07559543,3307.5,3307.1,1.121]
[1720022305560,0.07559543,3307.5,3306.8,2.3485]
[1720022305776,0.07559638,3307.8,3307.4,1.121]
[1720022305957,0.07559323,3307.7,3307.4,1.121]
[1720022306368,0.07559323,3307.7,3307.6,1.121]
[1720022306575,7.32,3308.0,3307.6,1.121]
[1720022306777,7.32,3308.0,3307.8,1.121]
[1720022306778,0.07558286,3307.9,3307.8,1.121]
[1720022306974,1.9455,3308.3,3307.8,1.121]
[1720022307178,0.07558159,3308.2,3307.8,1.121]
[1720022310085,3.07558083,3308.3,3308.1,1.121]
[1720022310286,3.07557376,3308.3,3308.1,1.121]
[1720022310500,0.07557366,3308.6,3308.1,1.121]
[1720022314503,0.07557366,3308.6,3307.4,2.489]
[1720022314708,0.07557366,3308.6,3308.0,1.121]
[1720022315907,0.07557366,3308.6,3308.2,1.121]
[1720022319222,0.07557366,3308.6,3307.5,2.5977]
[1720022319386,0.07557366,3308.6,3307.7,1.121]
[1720022320191,0.07557366,3308.6,3307.5,2.3488]
[1720022320387,0.07557366,3308.6,3306.9,2.4948]
[1720022320388,1.9455,3308.4,3306.9,2.4948]
[1720022320597,0.07558637,3308.3,3307.6,1.121]
[1720022320803,0.07558578,3308.2,3307.6,1.121]
[1720022321000,0.07558578,3308.2,3307.8,1.121]
[1720022321483,0.57769436,3308.2,3307.8,1.121]
[1720022323214,0.57769436,3308.2,3307.8,1.122]
[1720022323420,0.07558578,3308.2,3307.8,1.122]
[1720022323831,0.07558419,3308.3,3307.8,1.122]
[1720022323982,0.07558419,3308.2,3307.8,1.122]
[1720022324384,0.07558419,3308.2,3308.1,1.122]
[1720022324693,1.9455,3309.5,3308.1,1.52712076]
[1720022325037,1.9455,3309.5,3308.9,1.122]
[1720022325501,1.9455,3309.5,3308.1,0.34466]
[1720022325684,0.07556084,3308.9,3308.6,1.122]
[1720022325906,0.07556084,3308.9,3308.1,0.34466]
[1720022326090,0.07556084,3308.9,3308.2,0.303466]
[1720022327784,0.07556084,3308.9,3308.4,2.69]
[1720022328312,3.00425321,3309.4,3308.5,2.4265]
[1720022331219,10.32425321,3309.4,3308.5,2.4265]
[1720022336304,1.9455,3308.8,3307.8,2.2782]
[1720022336665,1.9455,3308.8,3308.0,2.69]
[1720022336666,0.07557328,3308.7,3308.0,2.69]
[1720022347961,0.07557328,3308.7,3308.6,1.121]
[1720022348154,0.07556504,3308.8,3308.6,1.121]
[1720022348336,0.07556504,3308.8,3308.7,1.121]
[1720022348733,0.07556504,3308.8,3308.0,0.23386533]
[1720022348938,0.07556504,3308.8,3308.7,1.121]
[1720022349136,1.9455,3308.7,3307.8,2.2782]
[1720022349337,0.0755746,3308.6,3308.2,1.121]
[1720022349540,0.20210746,3308.5,3308.2,1.121]
[1720022349733,0.07557233,3308.4,3308.2,1.121]
[1720022349931,0.07557233,3308.4,3308.3,1.121]
[1720022350540,0.0755701,3308.6,3308.3,1.121]
[1720022350762,0.0755701,3308.6,3308.5,1.121]
[1720022352850,0.0755701,3308.6,3307.3,2.4612]
[1720022353060,0.0755701,3308.6,3308.5,1.121]
[1720022353582,0.07556715,3308.8,3308.5,1.121]
[1720022353864,0.07556715,3308.8,3308.7,1.121]
[1720022355159,0.07556715,3308.8,3308.6,1.121]
[1720022356325,0.07556715,3308.8,3308.4,1.121]
[1720022356562,0.38312477,3308.7,3308.4,1.121]
[1720022359561,0.38312477,3308.7,3307.4,0.548482]
[1720022359562,1.9455,3308.6,3308.1,1.121]
[1720022359770,0.07557403,3308.5,3308.1,1.121]
[1720022361254,0.07557403,3308.5,3308.3,1.121]
[1720022365288,0.07557403,3308.5,3307.4,2.3099]
[1720022365466,0.07557403,3308.5,3308.3,1.121]
[1720022365787,0.27768143,3308.5,3308.3,1.121]
[1720022367194,0.27768143,3308.5,3307.4,2.3099]
[1720022367486,0.27768143,3308.5,3308.3,1.121]
[1720022367487,0.07557403,3308.5,3308.3,1.121]
[1720022369288,3.0,3308.9,3308.3,1.121]
[1720022369289,0.07556941,3308.8,3308.3,1.121]
[1720022369481,0.07556926,3308.7,3308.6,1.121]
[1720022370789,0.07556926,3308.7,3308.4,1.121]
[1720022376179,3.0,3308.9,3308.6,1.121]
[1720022376386,3.0,3308.9,3308.1,0.06045425]
[1720022376616,3.0,3308.9,3308.8,1.121]
[1720022377416,3.0,3308.9,3307.7,2.2851]
[1720022377631,3.0,3308.9,3308.6,1.121]
[1720022377772,3.0,3308.9,3307.7,2.2851]
[1720022377978,3.0,3308.9,3308.6,1.121]
[1720022378585,0.07556136,3308.8,3308.6,1.121]
[1720022386709,0.07556136,3308.8,3308.2,2.4268]
[1720022386710,0.07556136,3308.8,3308.7,1.121]
[1720022388625,1.2003575,3308.8,3308.2,2.4268]
[1720022388949,1.9455,3308.7,3308.1,1.121]
[1720022389089,0.07556989,3308.6,3308.1,1.121]
[1720022389991,0.07556989,3308.6,3308.3,1.121]
[1720022390215,0.07556989,3308.6,3308.4,1.121]
[1720022390731,0.07556862,3308.8,3308.4,1.121]
[1720022390929,0.07556874,3308.7,3308.4,1.121]
[1720022391848,0.07556874,3308.7,3307.8,0.24453]
[1720022391849,0.07556874,3308.7,3307.9,2.691]
[1720022394331,0.07556874,3308.7,3308.0,2.3969]
[1720022399144,0.07556874,3308.7,3307.9,2.691]
[1720022399530,1.9455,3308.6,3307.5,2.691]
[1720022399737,0.07557518,3308.5,3307.5,2.691]
[1720022399938,0.07557518,3308.5,3307.4,2.3899]
[1720022403917,1.9455,3308.4,3307.4,2.3899]
[1720022404115,0.07557899,3308.3,3307.4,2.3899]
[1720022404315,0.07557899,3308.3,3307.4,2.89799]
[1720022404822,1.9455,3308.4,3307.4,0.50809]
[1720022404823,0.07557902,3308.2,3307.4,0.50809]
[1720022405026,0.07557902,3308.2,3307.1,2.691]
[1720022405350,1.9455,3308.1,3307.0,2.3652]
[1720022405564,1.9455,3307.9,3306.7,2.691]
[1720022405768,0.27770026,3307.8,3306.7,2.691]
[1720022405950,0.07559382,3307.7,3306.7,2.691]
[1720022406919,1.9455,3307.6,3306.7,2.691]
[1720022407176,0.07559407,3307.5,3306.7,2.691]
[1720022408116,0.07559407,3307.5,3306.4,2.4833]
[1720022408321,1.9455,3307.4,3306.4,1.25829197]
[1720022408521,0.07560126,3307.3,3306.4,1.25829197]
[1720022408828,0.07560113,3307.2,3306.4,1.25829197]
[1720022409036,0.07560113,3307.2,3306.3,8.51070502]
[1720022409765,0.07560562,3307.3,3306.3,8.51070502]
[1720022409945,0.00425321,3306.8,3306.3,8.51070502]
[1720022410881,0.00425321,3306.8,3306.4,0.06048447]
[1720022411183,0.00425321,3306.8,3306.7,2.691]
[1720022411337,0.00425321,3306.8,3306.7,5.08]
[1720022412903,7.32,3307.6,3306.7,2.389]
[1720022413103,7.32,3307.6,3307.2,2.691]
[1720022413400,0.07558543,3307.5,3306.8,2.691]
[1720022413559,0.07558543,3307.5,3306.5,0.85711895]
[1720022413560,1.9455,3307.8,3306.5,2.691]
[1720022413755,1.9455,3307.6,3306.5,2.691]
[1720022413954,0.07560029,3307.5,3306.5,2.691]
[1720022414860,0.07560029,3307.5,3306.5,2.75148022]
[1720022415064,0.07560029,3307.5,3306.6,0.50064802]
[1720022415696,0.07560029,3307.5,3306.7,0.0604802]
[1720022415904,0.07560029,3307.5,3306.6,0.50064802]
[1720022416810,0.07560029,3307.5,3306.4,2.255]
[1720022416811,1.9455,3307.4,3306.3,5.81970502]
[1720022416995,1.9455,3307.2,3306.3,5.81970502]
[1720022417176,0.07560639,3307.1,3306.3,5.81970502]
[1720022418365,0.07560639,3307.1,3306.4,2.691]
[1720022418679,0.07560639,3307.1,3306.5,0.8510705]
[1720022420802,1.9455,3307.2,3306.5,3.2430705]
[1720022421003,2.02109962,3307.2,3306.5,3.2430705]
[1720022421678,2.02109962,3307.2,3306.5,0.8510705]
[1720022421881,2.02109962,3307.2,3306.4,2.691]
[1720022422071,2.02109962,3307.2,3306.0,2.691]
[1720022425423,2.02109962,3307.2,3306.0,2.691]
[1720022426798,2.02109962,3307.2,3306.4,2.691]
[1720022428637,2.02110508,3307.2,3306.5,0.06048406]
[1720022428775,2.02110508,3307.2,3306.4,4.9929]
[1720022429126,2.02110508,3307.2,3306.5,0.49929]
[1720022431277,2.02110508,3307.2,3306.4,2.691]
[1720022433313,2.02110508,3307.2,3306.1,2.4245]
[1720022433314,2.02110508,3307.2,3306.0,2.691]
[1720022434911,2.02110508,3307.2,3306.4,5.0308]
[1720022434912,1.9455,3307.2,3306.4,5.0308]
[1720022435144,1.9455,3307.2,3306.5,0.50308]
[1720022435145,2.02109936,3307.2,3306.5,0.50308]
[1720022435992,2.02109936,3307.2,3306.5,0.56355948]
[1720022435993,1.9455,3307.2,3306.5,0.56355948]
[1720022437510,3.0,3307.3,3306.5,0.56355948]
[1720022437706,3.0,3307.3,3306.6,0.55943595]
[1720022438097,3.0755968,3307.3,3306.6,0.55943595]
[1720022439942,3.0755968,3307.3,3306.6,0.5523506]
[1720022440509,3.0,3307.3,3306.6,0.61282802]
[1720022441438,3.07559677,3307.3,3306.6,0.5523506]
[1720022441913,3.0,3307.3,3306.6,0.61282804]
[1720022443832,3.07559679,3307.3,3306.6,0.5523506]
[1720022448225,3.0,3307.3,3306.6,0.612828]
[1720022448679,7.32,3307.4,3306.8,2.691]
[1720022448826,7.32,3307.4,3306.6,0.5523506]
[1720022448827,7.32,3307.4,3307.2,2.691]
[1720022449021,1.9455,3307.9,3307.2,2.691]
[1720022449323,7.32,3308.0,3307.3,0.06046357]
[1720022449553,7.32,3308.0,3307.6,2.691]
[1720022449864,7.32,3308.0,3307.7,0.2691]
[1720022450373,1.9455,3308.5,3307.7,0.2691]
[1720022450575,2.02106929,3308.5,3307.8,0.06045543]
[1720022451223,2.02106929,3308.5,3307.7,0.2691]
[1720022451448,5.02106929,3308.5,3307.8,0.29601]
[1720022454013,3.07556929,3308.5,3307.2,2.691]
[1720022454307,1.9455,3308.4,3307.2,2.691]
[1720022454504,0.07557779,3308.3,3307.3,0.50748]
[1720022457198,0.07557779,3308.3,3307.6,2.691]
[1720022459207,0.07557779,3308.3,3307.2,2.691]
[1720022459939,0.07557588,3308.4,3307.9,2.691]
[1720022460341,3.0,3308.5,3307.9,2.691]
[1720022460545,3.0,3308.5,3307.9,3.26880442]
[1720022461225,3.0,3308.5,3307.9,2.75145442]
[1720022462254,7.32,3308.6,3307.9,2.75145442]
[1720022467614,7.32,3308.6,3307.9,2.691]
[1720022468718,7.32,3308.6,3307.0,2.77549076]
[1720022468719,1.9455,3308.4,3307.0,2.77549076]
[1720022468914,0.07557654,3308.3,3307.0,5.49130977]
[1720022469242,0.07557751,3308.2,3307.0,5.49130977]
[1720022469429,0.07557751,3308.2,3307.0,5.1614]
[1720022469630,1.9455,3308.1,3307.0,5.1614]
[1720022469847,0.07558384,3308.0,3307.0,5.1614]
[1720022470760,0.07558384,3308.0,3307.0,2.691]
[1720022470964,0.20210838,3307.9,3307.0,2.691]
[1720022471120,0.07558752,3307.8,3306.6,4.9826]
[1720022472893,0.07558752,3307.8,3306.6,2.691]
[1720022473629,0.07558979,3307.7,3306.6,2.691]
[1720022473829,1.9455,3307.6,3306.6,2.691]
[1720022474053,0.27770126,3307.5,3306.6,2.691]
[1720022475484,1.9455,3308.0,3307.0,2.691]
[1720022475792,1.9455,3308.0,3307.4,2.691]
[1720022475793,0.07558257,3307.9,3307.4,2.691]
[1720022476452,0.07558257,3307.9,3307.0,2.691]
[1720022476650,0.07558257,3307.9,3306.3,2.3142]
[1720022476855,1.9455,3307.8,3306.3,2.3142]
[1720022477151,0.07559662,3307.7,3306.3,2.3142]
[1720022477673,1.9455,3307.6,3306.3,2.3142]
[1720022477869,0.07559664,3307.5,3306.3,2.3142]
[1720022478189,0.20210966,3307.4,3306.3,2.81472]
[1720022478361,0.07559661,3307.3,3306.3,2.81472]
[1720022478685,1.9455,3307.1,3306.3,0.50052]
[1720022478846,0.07560527,3307.0,3306.0,2.691]
[1720022479851,0.07560527,3307.0,3306.1,0.06048421]
[1720022480051,0.07560526,3307.3,3306.4,2.691]
[1720022480256,1.32992675,3307.3,3306.4,2.691]
[1720022481253,0.07559679,3307.2,3306.4,2.691]
[1720022481449,3.07559679,3307.4,3306.5,0.06047743]
[1720022486284,3.07559679,3307.4,3306.4,2.691]
[1720022486677,1.9455,3307.3,3306.0,2.691]
[1720022486978,0.07560223,3307.2,3306.1,0.2691]
[1720022487574,1.9455,3307.3,3306.4,5.1252]
[1720022487779,1.9455,3307.3,3306.5,0.0604761]
[1720022487996,1.9455,3307.3,3306.6,0.51856761]
[1720022488196,1.9455,3307.3,3306.7,0.0604761]
[1720022489111,4.9455,3307.3,3306.7,0.0604761]
[1720022489309,1.9455,3307.3,3306.7,0.0604761]
[1720022490385,0.07559513,3307.2,3306.6,0.51856761]
[1720022490575,0.07559513,3307.2,3306.4,2.691]
[1720022492803,2.02109833,3307.3,3306.5,0.06047866]
[1720022493297,1.9455,3307.3,3306.5,0.06047866]
[1720022494702,1.9455,3307.3,3306.1,5.5942]
[1720022494703,0.07559489,3307.2,3306.1,2.5695]
[1720022494895,0.20210949,3307.1,3306.1,2.5695]
[1720022495096,0.07559489,3307.2,3306.1,2.5695]
[1720022496140,1.9455,3307.3,3306.1,2.5695]
[1720022496141,1.9455,3307.3,3306.3,2.691]
[1720022496286,1.9455,3307.3,3306.4,0.06047861]
[1720022498719,3.07559828,3307.5,3306.5,2.378]
[1720022498720,3.0,3307.5,3306.5,2.378]
[1720022498928,3.0,3307.5,3306.7,2.691]
[1720022499093,3.0,3307.5,3306.8,0.06046846]
[1720022499301,7.31,3307.6,3306.9,2.4882]
[1720022499505,7.31,3307.6,3307.0,0.06046655]
[1720022499721,9.2555,3307.9,3307.0,0.06046655]
[1720022499944,9.2555,3307.9,3307.0,0.25486666]
[1720022500440,0.07558276,3307.8,3307.0,0.25486666]
[1720022500794,9.2555,3307.9,3307.1,0.06046621]
[1720022501138,3.0,3307.8,3307.1,0.06046621]
[1720022503202,3.0,3307.8,3307.1,0.3408195]
[1720022503388,3.0,3307.8,3307.2,0.06046538]
[1720022504435,3.0,3307.8,3307.1,2.97135329]
[1720022508229,0.07557916,3307.7,3306.7,2.691]
[1720022508387,1.9455,3307.6,3306.6,2.818137]
[1720022508591,0.07558607,3307.5,3306.3,2.2779]
[1720022508834,4.14593576,3307.4,3306.3,2.2779]
[1720022509009,2.021097,3307.7,3306.4,2.691]
[1720022509211,2.2003402,3307.6,3306.4,2.691]
[1720022509419,5.2003402,3307.6,3306.5,0.49689]
[1720022509613,3.07559102,3307.6,3306.5,0.49689]
[1720022509812,0.07559102,3307.6,3306.5,0.49689]
[1720022510428,1.9455,3307.7,3306.8,2.691]
[1720022510606,2.20026626,3307.6,3306.9,0.06046716]
[1720022510810,3.0,3307.8,3306.9,0.06046716]
[1720022511041,2.20018004,3307.7,3306.9,0.06046716]
[1720022511409,3.0,3307.8,3306.9,0.06046716]
[1720022511611,2.20011142,3307.7,3307.0,0.27514672]
[1720022511812,2.20011142,3307.7,3307.1,0.06046656]
[1720022512413,2.20011142,3307.7,3307.1,2.2623]
[1720022512746,7.31,3307.9,3307.2,2.691]
[1720022513050,7.31,3308.3,3307.3,0.55579128]
[1720022513199,2.19982345,3308.2,3307.6,2.691]
[1720022513403,7.31,3308.3,3307.7,0.2691]
[1720022513709,7.31,3308.7,3307.8,2.3991]
[1720022513908,2.19964473,3308.6,3307.8,2.3991]
[1720022515143,5.19964473,3308.6,3307.8,2.3991]
[1720022515320,2.19964473,3308.5,3307.8,2.3991]
[1720022515642,5.19964473,3308.5,3307.9,0.26682]
[1720022515940,7.31,3308.7,3307.9,0.26682]
[1720022515941,3.0,3308.4,3307.9,0.26682]
[1720022516110,3.0,3308.6,3307.9,0.26682]
[1720022516440,3.0,3308.6,3307.8,2.3991]
[1720022516441,2.19963413,3308.5,3308.0,0.266592]
[1720022517340,7.31,3308.7,3308.1,0.06044943]
[1720022517837,2.19953169,3308.6,3308.1,0.06044943]
[1720022518001,7.31,3308.7,3308.1,0.06044943]
[1720022518200,2.1995545,3308.6,3308.1,0.06044943]
[1720022518439,7.31,3308.7,3308.1,0.06044943]
[1720022519002,7.31,3308.7,3308.0,0.266592]
[1720022520016,7.31,3308.7,3308.1,0.06044842]
[1720022521409,7.31,3308.7,3308.2,0.30180404]
[1720022523317,7.31,3308.7,3308.2,0.36225246]
[1720022523517,11.1724,3309.0,3308.3,2.2538]
[1720022526912,11.1724,3309.0,3308.2,0.30180404]
[1720022527111,11.1724,3309.0,3308.3,0.06044405]
[1720022527315,11.1724,3309.0,3308.4,5.0429]
[1720022527559,11.1724,3309.0,3308.5,0.57077526]
[1720022528966,8.1724,3309.0,3308.5,0.57077526]
[1720022529253,8.1724,3309.0,3308.5,0.51033441]
[1720022530571,8.1724,3309.0,3308.8,2.691]
[1720022530722,8.1724,3309.0,3308.9,2.49843462]
[1720022530926,8.1724,3309.0,3308.9,3.01737808]
[1720022532929,8.1724,3309.0,3308.9,2.95694346]
[1720022535046,8.1724,3309.0,3308.9,3.01737606]
[1720022535279,8.1724,3309.0,3308.9,2.95694346]
[1720022535431,8.1724,3309.0,3308.9,5.97909346]
[1720022537727,7.32,3310.3,3309.4,2.3023]
[1720022537927,7.32,3310.6,3309.9,2.691]
[1720022538141,2.2913,3310.4,3309.9,2.691]
[1720022540041,3.07552339,3310.5,3309.9,2.691]
[1720022541271,0.07552339,3310.5,3310.0,2.4444]
[1720022541872,0.07552339,3310.5,3309.4,2.2887]
[1720022542038,0.07552339,3310.5,3309.8,2.691]
[1720022545978,7.32,3310.6,3309.9,0.06041689]
[1720022546186,7.32,3310.6,3309.8,2.691]
[1720022546873,7.32,3310.6,3309.9,2.31651508]
[1720022548678,2.298,3310.9,3310.2,2.691]
[1720022548679,9.618,3310.9,3310.2,2.691]
[1720022548992,2.298,3310.9,3310.2,2.691]
[1720022549283,3.0,3311.1,3310.3,0.06041383]
[1720022549484,0.1159688,3311.5,3311.0,2.691]
[1720022550438,0.1159688,3311.5,3310.5,2.3051]
[1720022550633,0.1159688,3311.5,3310.6,2.691]
[1720022557290,0.1159688,3311.5,3310.7,0.06040152]
[1720022557576,0.1159688,3311.5,3310.6,2.691]
[1720022557789,0.1159688,3311.5,3310.7,0.2691]
[1720022560777,0.1159688,3311.5,3310.7,2.5684]
[1720022560979,0.1159688,3311.5,3311.0,2.691]
[1720022562251,0.1159688,3311.5,3311.1,0.06039927]
[1720022562461,0.1159688,3311.5,3311.4,2.691]
[1720022562697,0.1159688,3311.5,3311.4,2.9601]
[1720022565410,0.1159688,3311.5,3311.4,2.691]
[1720022576663,0.1159688,3311.5,3311.4,4.9994]
[1720022577638,0.1159688,3311.5,3311.4,5.05978554]
[1720022579325,2.493767,3312.3,3311.4,5.05978554]
[1720022579577,7.46,3312.4,3311.4,5.05978554]
[1720022579778,7.46,3312.4,3311.5,0.80797355]
[1720022579961,7.46,3312.4,3311.6,0.06038537]
[1720022581545,3.0,3312.3,3311.6,0.06038537]
[1720022582683,7.46,3312.4,3311.6,0.06038537]
[1720022583947,7.46,3312.4,3312.3,1.119]
[1720022584149,3.0,3312.4,3312.3,1.119]
[1720022584569,2.33738046,3312.5,3312.3,1.119]
[1720022584772,2.2619,3312.5,3312.3,1.119]
[1720022586376,7.46,3312.8,3312.3,1.119]
[1720022586570,7.46,3312.8,3312.7,1.119]
[1720022587150,7.46,3313.5,3312.7,1.119]
[1720022587491,2.27212136,3313.4,3313.2,1.119]
[1720022587666,0.07545606,3313.4,3313.2,1.119]
[1720022587859,0.0754559,3313.6,3312.5,2.683]
[1720022588184,2.19648514,3313.5,3312.6,2.3696]
[1720022588387,0.07545609,3313.4,3312.6,2.3696]
[1720022588753,0.0754561,3313.6,3312.6,2.3696]
[1720022588986,0.31576781,3313.3,3312.6,2.3696]
[1720022589187,0.0754561,3313.4,3312.6,2.3696]
[1720022589617,0.24236561,3313.5,3312.6,2.3696]
[1720022589618,0.0754561,3313.5,3312.6,2.3696]
[1720022590455,0.07545612,3313.6,3312.6,2.3696]
[1720022590656,2.19642673,3313.5,3312.6,2.3696]
[1720022592790,0.07545613,3313.4,3312.6,2.3696]
[1720022593723,0.07545618,3313.5,3312.6,2.3696]
[1720022593868,2.196525,3313.4,3312.6,2.3696]
[1720022594063,0.07545619,3313.3,3312.6,2.3696]
[1720022594297,2.4767562,3313.2,3312.3,2.3556]
[1720022594518,2.4767562,3313.2,3311.7,2.3556]
[1720022594519,4.59804506,3313.1,3311.7,2.3556]
[1720022594825,4.59804506,3313.1,3311.1,3.02005]
[1720022594826,2.4013,3312.9,3311.4,2.3556]
[1720022594999,2.73957929,3312.8,3311.4,2.3556]
[1720022595195,2.3905,3312.6,3311.1,2.683]
[1720022595385,2.27223116,3312.5,3311.1,2.683]
[1720022595723,2.19728078,3312.4,3311.1,2.683]
[1720022596011,0.07548634,3312.3,3311.1,2.683]
[1720022596305,0.60276305,3312.3,3311.2,0.50358]
[1720022596507,0.07548635,3312.2,3311.2,0.50358]
[1720022598092,0.07548637,3312.4,3311.5,2.683]
[1720022598489,0.07548637,3312.4,3311.2,0.50358]
[1720022598490,2.19718368,3312.3,3311.2,0.50358]
[1720022598702,0.07548982,3312.2,3311.2,0.50358]
[1720022599485,0.07549095,3312.5,3311.2,0.50358]
[1720022599686,2.1973018,3312.4,3311.2,0.50358]
[1720022599886,0.07549096,3312.3,3311.2,0.50358]
[1720022600141,2.50007204,3312.2,3311.2,0.50358]
[1720022600295,0.30277024,3312.2,3311.2,0.50358]
[1720022600505,0.07549096,3312.2,3311.2,0.50358]
[1720022600821,0.07549096,3312.2,3311.3,0.06039278]
[1720022601044,0.07549092,3312.5,3311.2,0.50358]
[1720022601210,2.19729018,3312.4,3311.2,0.50358]
[1720022601531,2.19729018,3312.4,3311.3,0.06039278]
[1720022601532,0.07549098,3312.3,3311.3,0.06039278]
[1720022601845,2.27278117,3312.2,3311.3,0.06039278]
[1720022601990,2.27278117,3312.2,3311.1,2.683]
[1720022601991,2.19729018,3312.1,3311.1,2.683]
[1720022602196,2.46549407,3312.0,3310.7,2.9521]
[1720022602391,2.44400111,3311.9,3310.7,2.9521]
[1720022602624,2.27294527,3311.8,3310.7,2.9521]
[1720022602804,0.07549461,3311.7,3310.7,2.9521]
[1720022603405,2.19767789,3311.6,3310.6,2.3738]
[1720022603733,2.19767789,3311.6,3310.2,3.191]
[1720022603734,2.2667,3311.4,3310.3,2.4792]
[1720022603950,2.50740338,3311.3,3310.3,2.4792]
[1720022604238,2.27318338,3311.2,3310.3,2.4792]
[1720022604401,0.07550549,3311.2,3310.3,2.4792]
[1720022605126,0.07550549,3311.2,3310.1,2.683]
[1720022605299,2.19802632,3311.1,3310.1,2.683]
[1720022605501,0.07550779,3311.0,3310.2,0.2683]
[1720022606026,0.0755078,3311.2,3310.2,0.2683]
[1720022606223,2.19809881,3311.1,3310.2,0.2683]
[1720022606425,2.19809881,3311.1,3309.9,2.442]
[1720022606426,0.07551554,3311.0,3309.5,2.3679]
[1720022606636,4.44979881,3310.9,3309.5,2.3679]
[1720022606834,2.27361685,3310.8,3309.8,2.683]
[1720022606994,2.27361685,3310.8,3309.9,0.2683]
[1720022606995,0.07551804,3310.7,3309.9,0.2683]
[1720022607896,0.07551804,3310.7,3309.5,2.3679]
[1720022608297,3.0,3311.2,3310.1,2.683]
[1720022608298,0.07552246,3310.8,3310.1,2.683]
[1720022609437,0.07551829,3311.1,3310.1,2.683]
[1720022610551,2.3381,3311.3,3310.5,2.683]
[1720022610852,7.37,3311.7,3310.6,0.2683]
[1720022611065,2.27339821,3311.6,3310.6,0.2683]
[1720022611264,0.07550094,3311.6,3310.6,0.2683]
[1720022612329,3.07550094,3311.6,3310.6,0.2683]
[1720022612546,3.07550094,3311.6,3310.7,0.35553077]
[1720022612753,7.37,3311.7,3310.7,0.35553077]
[1720022612926,7.37,3311.7,3310.9,2.683]
[1720022613124,7.37,3311.7,3310.8,2.683]
[1720022613327,7.37,3311.7,3310.9,0.297813]
[1720022613941,7.37,3311.7,3311.0,0.06039441]
[1720022614142,10.37,3312.1,3311.1,2.2954]
[1720022614344,3.0,3312.1,3311.2,0.06039096]
[1720022614692,9.6256,3312.5,3311.2,2.74339096]
[1720022614693,0.0754887,3312.4,3311.2,2.74339096]
[1720022614966,0.0754887,3312.4,3311.3,0.56427007]
[1720022615729,0.0754887,3312.4,3311.3,0.06039097]
[1720022616541,0.0754887,3312.4,3311.2,2.683]
[1720022618953,2.19742541,3312.3,3311.1,2.2954]
[1720022619154,0.07548875,3312.2,3311.1,2.2954]
[1720022619467,0.07548875,3312.2,3311.2,0.22954]
[1720022619663,0.07548875,3312.2,3311.3,0.060391]
[1720022619850,0.07548875,3312.3,3311.3,0.060391]
[1720022620162,2.2556,3312.5,3311.2,2.91254]
[1720022620365,0.0754848,3312.4,3311.4,0.06038784]
[1720022620980,2.2556,3312.5,3311.4,0.06038784]
[1720022622960,0.0754846,3312.6,3311.5,2.2989]
[1720022623254,0.0754846,3312.6,3311.6,0.06038503]
[1720022623453,0.0754846,3312.6,3311.5,2.2989]
[1720022623454,0.30754846,3312.5,3311.5,2.2989]
[1720022623640,0.07548128,3312.4,3311.5,2.2989]
[1720022624808,0.0754813,3312.6,3311.6,0.06038504]
[1720022626276,0.0754813,3312.6,3311.5,2.2989]
[1720022626479,0.0754813,3312.6,3311.6,0.22989]
[1720022627517,2.4377,3312.5,3311.6,0.22989]
[1720022627819,2.27281521,3312.4,3311.6,0.22989]
[1720022627973,3.07548279,3312.4,3311.6,0.22989]
[1720022628374,3.07548279,3312.4,3311.0,6.21122]
[1720022628375,3.07548279,3312.4,3310.5,2.4415]
[1720022628574,2.19735763,3312.3,3310.5,2.4415]
[1720022628770,0.07549691,3312.2,3310.5,2.4415]
[1720022628974,2.19735763,3312.1,3310.5,2.4415]
[1720022629209,0.07549692,3312.0,3310.5,2.4415]
[1720022629371,0.07549692,3312.0,3310.6,0.814527]
[1720022629573,0.07549692,3312.0,3310.7,2.3491]
[1720022629785,0.07549692,3312.0,3310.8,2.683]
[1720022630201,0.07549693,3312.3,3310.8,2.683]
[1720022630404,2.27304193,3312.2,3310.8,2.683]
[1720022630616,0.22730419,3312.1,3310.9,0.50321]
[1720022630804,0.07549692,3312.0,3310.9,0.50321]
[1720022631733,0.07549691,3312.3,3310.9,0.50321]
[1720022632030,2.27305603,3312.2,3310.9,0.50321]
[1720022632195,2.42486472,3312.1,3310.9,0.50321]
[1720022632397,0.07549692,3312.0,3310.9,0.50321]
[1720022632919,3.07549692,3312.0,3310.9,0.50321]
[1720022633096,0.07549692,3312.0,3310.9,0.50321]